Cogmind - Beta 17 @@@ ROGUE MODE // 2026.06.24 @ 23:04:22 Player: THN-L0C Result: Self-destructed Performance ------------- Evolutions (2) 1000 Regions Visited (3) 600 Robots Destroyed (12) 60 Value Destroyed (358) 358 Prototype IDs (15) 300 Alien Tech Used (0) 0 Bonus (0) 0 TOTAL SCORE: 2318 Bonus ------- None Cogmind --------- Core Integrity 550/550 Matter 300/300 Energy 200/200 System Corruption 0% Temperature Cool (0) Movement Rolling (120) Ox2 Location -8/Materials Parts ------- > --- POWER (1) -------- Subdweller Power Source > --- PROPULSION (3) --- Armored Wheel Armored Wheel > --- UTILITY (5) ------ High-capacity Storage Unit Self-contained Transmogrifier > --- WEAPON (2) ------- Assault Rifle Makeshift Sword > --- INVENTORY (20) --- Subdweller Power Source Subdweller Power Source Arachnoskeleton Armored Wheel Armored Wheel Subdweller Monowheel Subdweller Optics Seismic Detector Hardened Light Armor Plating Hardened Light Armor Plating Scrap Shield Subdweller Beam Cannon Barrage Gun Mini Grenade Launcher Subdweller Shrapnel Launcher Subdweller Shrapnel Launcher Shrapnel Trap Peak State ------------ > --- POWER ------------ Subdweller Power Source > --- PROPULSION ------- Armored Wheel Armored Wheel > --- UTILITY ---------- High-capacity Storage Unit Self-contained Transmogrifier > --- WEAPON ----------- Assault Rifle Makeshift Sword > --- INVENTORY -------- Ion Engine Subdweller Power Source Subdweller Power Source Arachnoskeleton Armored Wheel Armored Wheel Subdweller Monowheel Subdweller Optics Seismic Detector Hardened Light Armor Plating Hardened Light Armor Plating Scrap Shield Barrage Gun Mini Grenade Launcher Subdweller Shrapnel Launcher Subdweller Shrapnel Launcher Shrapnel Trap [Rating: 26] Favorites ----------- Power Ion Engine Engine Ion Engine Propulsion Aluminum Leg Leg Aluminum Leg Wheel Wheel Utility High-capacity Storage Unit Device Self-contained Transmogrifier Storage High-capacity Storage Unit Protection Hardened Light Armor Plating Weapon Assault Rifle Ballistic Gun Assault Rifle Launcher Mini Grenade Launcher Special Weapon Mining Laser Slashing Weapon Makeshift Sword Build | -11 -10 -10 -8 ------- Run | Yrd Mat Sub Mat Slots Evolved 4 | . . . 4 Power . | . . . . Propulsion 1 | . . . 1 Utility 3 | . . . 3 Weapon . | . . . . Parts Attached 20 | 6 1 13 . Power 2 | 1 . 1 . Engine 2 | 1 . 1 . Core . | . . . . Reactor . | . . . . Propulsion 6 | 2 . 4 . Treads . | . . . . Leg 2 | . . 2 . Wheel 4 | 2 . 2 . Hover . | . . . . Flight . | . . . . Utility 4 | 1 1 2 . Device 1 | . . 1 . Storage 2 | 1 1 . . Processor . | . . . . Hackware . | . . . . Protection 1 | . . 1 . Artifact . | . . . . Weapon 8 | 2 . 6 . Energy Gun . | . . . . Energy Cannon . | . . . . Ballistic Gun 3 | 2 . 1 . Ballistic Cannon . | . . . . Launcher 3 | . . 3 . Special Weapon 1 | . . 1 . Impact Weapon . | . . . . Slashing Weapon 1 | . . 1 . Piercing Weapon . | . . . . Special Melee Weapon . | . . . . Unidentified Prototypes 1 | . . 1 . Parts Lost 1 | . . 1 . Power . | . . . . Propulsion . | . . . . Utility . | . . . . Weapon 1 | . . 1 . Highest Loss Streak 1 | . . 1 . To Critical Strikes . | . . . . Average Backups 16 | 3 10 18 16 Power 1 | . 1 2 2 Propulsion 4 | 1 3 5 4 Utility 4 | . 2 5 5 Weapon 5 | 1 3 5 5 Tool/Special . | . . . . Unused Backups 19 | . . 6 13 Power 3 | . . 1 2 Propulsion 6 | . . 2 4 Utility 6 | . . 1 5 Weapon 4 | . . 2 2 Tool/Special . | . . . . Average Slot Usage (%) 96 | . 85 98 63 Engine 13 | . 14 14 9 Leg 19 | . . 21 . Wheel 8 | . 28 6 18 Device 1 | . . 1 9 Storage 13 | . 14 14 9 Protection 9 | . . 11 . Ballistic Gun 19 | . 28 18 9 Launcher 6 | . . 7 . Slashing Weapon 1 | . . 1 9 Peak Build Rating 26 | 6 9 26 26 Average Rating 12 | 5 7 13 26 On Entrance 10 | . 6 9 26 Avg Prop Armor Cover (%) . | . . . . Naked Turns . | . . . . Heaviest Build 60 | 14 49 60 49 Greatest Support 24 | 20 20 24 24 Greatest Overweight (x) 4 | . 2 4 2 Average Overweight (x) 1 | . 1 2 2 Largest Inventory Capacity 20 | 8 20 20 20 Average Capacity 19 | 7 17 20 20 Most Carried 20 | 6 18 20 20 Average Carried 17 | 3 10 19 20 Final Capacity 20 | 8 20 20 20 Final Carried 20 | 6 18 20 20 Class Distribution -------------------- 100% | Mutant Dominant Class ---------------- Mutant | -10/Materials Mutant | -10/Subcaves Mutant | -8/Materials Resources | -11 -10 -10 -8 ----------- Run | Yrd Mat Sub Mat Matter Collected 693 | 290 118 285 . Remotely . | . . . . Salvage Created 544 | 35 176 333 . Parts 37 | 9 9 19 . Haulers Intercepted . | . . . . Recyclers Shooed 1 | 1 . . . Parts Field Recycled . | . . . . Retrieved Matter . | . . . . Parts Self-Destructed 4 | . . 4 . Prevented . | . . . . Parts Restored . | . . . . Kills | -11 -10 -10 -8 ------- Run | Yrd Mat Sub Mat Combat Hostiles Destroyed 8 | . 2 6 . Guns 4 | . 2 2 . AOE 4 | . . 4 . Classes Destroyed 5 | 1 3 1 . Tunneler 2 | 2 . . . Recycler 1 | . 1 . . Watcher 1 | . 1 . . Grunt 4 | . 2 2 . Subdweller 4 | . . 4 . Best Kill Streak 3 | 1 2 3 . Combat Bots Only 3 | . 1 3 . Max Kills in Single Turn 2 | 1 1 2 . Gunslinging . | . . . . Exploded 2 | . . 2 . Melee . | . . . . Uniques/NPCs Destroyed . | . . . . Combat | -11 -10 -10 -8 -------- Run | Yrd Mat Sub Mat Hostile Shots Fired 39 | . 22 17 . Missed 12 | . 7 5 . Hits 27 | . 15 12 . Projectile 27 | . 15 12 . AOE 4 | . . 4 . Critical Strikes 1 | . 1 . . Damage Taken 577 | . 209 368 . Core 121 | . 70 51 . Absorbed by Shields . | . . . . Core Remaining (%) 75 | 100 . 51 . Volleys Fired 42 | 8 18 16 . Largest 2 | 2 2 2 . Hottest 100 | 40 40 100 . Shots Fired 76 | 16 36 24 . Gun 70 | 16 36 18 . Cannon . | . . . . Launcher 5 | . . 5 . Special 1 | . . 1 . Kinetic 70 | 16 36 18 . Thermal 1 | . . 1 . Explosive 5 | . . 5 . Electromagnetic . | . . . . Robot Hit Streak 16 | 2 6 16 . Robot Miss Streak 3 | 3 2 1 . Penetration Max . | . . . . Secondary Targets . | . . . . Shots Hit Robots 65 | 7 23 35 . Core Hits 24 | 2 7 15 . Critical Kills . | . . . . Critical Parts Destroyed 1 | . 1 . . Critical Strikes 1 | . 1 . . Destroy 1 | . 1 . . Melee Attacks 15 | . . 15 . Impact . | . . . . Slashing 15 | . . 15 . Piercing . | . . . . Sneak Attacks 1 | . . 1 . Combat Hostiles . | . . . . Follow-up Attacks . | . . . . Damage Inflicted 1784 | 87 292 1405 . Guns 584 | 87 287 210 . Cannons . | . . . . Explosions 336 | . . 336 . Melee 859 | . . 859 . Ramming 5 | . 5 . . Kinetic 584 | 87 287 210 . Thermal . | . . . . Explosive 336 | . . 336 . Electromagnetic . | . . . . Impact . | . . . . Slashing 859 | . . 859 . Piercing . | . . . . Highest Corruption 1 | . 1 1 . Average Corruption 1 | . 1 1 . Corruption Purged . | . . . . Corruption Blocked . | . . . . Effects 13 | . . 13 . Message Errors 3 | . . 3 . Matter Fused 6 | . . 6 . Energy Discharges 1 | . . 1 . Data Loss (minor) 2 | . . 2 . Data Loss (major) 1 | . . 1 . Overload Shots . | . . . . Overflow Damage 34 | . . 34 . Projectiles . | . . . . Explosions . | . . . . Melee 34 | . . 34 . Knockbacks . | . . . . Impact . | . . . . Kinetic . | . . . . Secondary . | . . . . Self-Inflicted Damage 2 | . 2 . . Shots . | . . . . Rammed 2 | . 2 . . Targets Rammed 2 | . 2 . . Kicked . | . . . . Crushed . | . . . . Highest Temperature 20 | . 20 . . Average Temperature 5 | . 5 . . Received Heat Transfer 195 | . 135 60 . Siege Activations . | . . . . Martial Activations . | . . . . Shielding Activations . | . . . . Robots Disrupted . | . . . . Combat Hostiles . | . . . . Robots Corrupted . | . . . . Combat Hostiles . | . . . . Parts Fried . | . . . . Impact Corruptions . | . . . . Robots Melted . | . . . . Combat Hostiles . | . . . . Parts Melted . | . . . . Heat Transferred . | . . . . Parts Sabotaged . | . . . . Parts Stolen . | . . . . Parts Stripped . | . . . . Power Chain Reactions . | . . . . Alert | -11 -10 -10 -8 ------- Run | Yrd Mat Sub Mat Maximum Alert Level . | . . . . Low Security (%) 100 | 100 100 . 100 Level 1 . | . . . . Level 2 . | . . . . Level 3 . | . . . . Level 4 . | . . . . Level 5 . | . . . . High Security . | . . . . Max Security . | . . . . Peak Influence 50 | 5 50 . . Initial 3 | . 3 . . Average 12 | 1 19 . . Influence Increases 137 | 10 77 50 . Destroy 0b10 Robot/C 80 | . 40 40 . Destroy 0b10 Robot/NC 20 | 10 10 . . Destroy Leader 22 | . 12 10 . Lose Combat Pursuer 15 | . 15 . . Influence Decreases 137 | 5 55 77 . Entered New Map 16 | . 2 14 . Time Decay 121 | 5 53 63 . Squads Dispatched 2 | . 2 . . Investigation 1 | . 1 . . Extermination . | . . . . Reinforcement 1 | . 1 . . Assault . | . . . . Garrison . | . . . . Intercept . | . . . . Searches Triggered . | . . . . Construction Impeded . | . . . . Haulers Reinforced . | . . . . Active Scanning Responses . | . . . . Cargo Convoy Interrupts . | . . . . Stealth | -11 -10 -10 -8 --------- Run | Yrd Mat Sub Mat Distress Signals 2 | . 2 . . Communications Jammed . | . . . . Distress Signals . | . . . . Times Spotted 12 | . 5 7 . Peak Tracking Total 3 | . 3 2 . Tactical Retreats 2 | . 1 1 . Traps | -11 -10 -10 -8 ------- Run | Yrd Mat Sub Mat Traps Triggered 1 | . 1 . . Indirectly . | . . . . Trap Hack Attempts . | . . . . Triggered . | . . . . Disarmed . | . . . . Reprogrammed . | . . . . Reused . | . . . . Traps Extracted . | . . . . Installed . | . . . . Triggered . | . . . . Most Traps Carried 1 | . . 1 1 Machines | -11 -10 -10 -8 ---------- Run | Yrd Mat Sub Mat Machines Disabled 1 | . . 1 . Max in Single Turn 1 | . . 1 . Machines Repaired . | . . . . Machines Dismantled . | . . . . Machines Sabotaged . | . . . . Overloaded Fab Kills . | . . . . Hacking | -11 -10 -10 -8 --------- Run | Yrd Mat Sub Mat Machines Accessed 3 | . 1 2 . Terminals 1 | . 1 . . Fabricators . | . . . . Repair Stations . | . . . . Recycling Units . | . . . . Scanalyzers . | . . . . Garrison Access . | . . . . Total Hacks 14 | . 2 12 . Successful 12 | . . 12 . Failed 2 | . 2 . . Catastrophic . | . . . . Database Lockouts . | . . . . Manual 3 | . 3 . . Terminals 2 | . 2 . . Fabricators . | . . . . Repair Stations . | . . . . Recycling Units . | . . . . Scanalyzers . | . . . . Garrison Access . | . . . . Terminal Hacks 12 | . . 12 . Record 11 | . . 11 . Proto ID Catalog 1 | . . 1 . Fabricator Hacks . | . . . . Repair Station Hacks . | . . . . Recycling Unit Hacks . | . . . . Scanalyzer . | . . . . Garrison Access Hacks . | . . . . Unauthorized Hacks . | . . . . Terminals . | . . . . Fabricators . | . . . . Repair Stations . | . . . . Recycling Units . | . . . . Scanalyzers . | . . . . Garrison Access . | . . . . Data Cores Recovered . | . . . . Used . | . . . . Hacking Detections 1 | . 1 . . Full Trace Events 1 | . 1 . . Feedback Events 1 | . 1 . . Corruption 1 | . 1 . . Feedback Blocked . | . . . . Robot Schematics Acquired . | . . . . Robots Built . | . . . . Authchips . | . . . . Time . | . . . . Total Robot Build Rating . | . . . . Part Schematics Acquired . | . . . . Parts Built . | . . . . Authchips . | . . . . Time . | . . . . Total Part Build Rating . | . . . . Part Studies Acquired . | . . . . Parts Repaired . | . . . . Time . | . . . . Parts Recycled . | . . . . Recycled Matter . | . . . . Retrieved Matter . | . . . . Retrieved Components . | . . . . Parts Scanalyzed . | . . . . Part Schematics Acquired . | . . . . Parts Damaged . | . . . . Bothacking | -11 -10 -10 -8 ------------ Run | Yrd Mat Sub Mat Used RIF Installer . | . . . . Robots Hacked . | . . . . Non-combat . | . . . . Combat . | . . . . Robot Hacks Applied . | . . . . Relay Couplers Released . | . . . . Fabnet Peak Effective % . | . . . . Robots Rewired . | . . . . Allies Hacked . | . . . . Hacks Repelled . | . . . . Allies | -11 -10 -10 -8 -------- Run | Yrd Mat Sub Mat Total Allies . | . . . . Largest Group . | . . . . Highest-Rated Group . | . . . . Highest-Rated Ally . | . . . . Total Orders . | . . . . Ally Attacks . | . . . . Total Damage . | . . . . Kills . | . . . . Allies Corrupted . | . . . . Allies Melted . | . . . . Intel | -11 -10 -10 -8 ------- Run | Yrd Mat Sub Mat Active Infowar (turns) . | . . . . Robot Analysis Total . | . . . . Derelict Logs Recovered 1 | . . 1 . Drone Launches . | . . . . Drone Recoveries . | . . . . Exploration | -11 -10 -10 -8 ------------- Run | Yrd Mat Sub Mat Turns Passed 1755 | 99 173 1475 8 Spaces Moved 827 | 76 104 641 6 Core 1 | 1 . . . Treads . | . . . . Legs 401 | . . 401 . Wheels 425 | 75 104 240 6 Hover . | . . . . Flight . | . . . . Fastest Speed 50 | 50 80 110 120 Average Speed 179 | 79 97 205 120 Slowest Speed 260 | 80 110 260 120 Overloaded Moves . | . . . . Propulsion Burnouts . | . . . . Robots Hopped . | . . . . Potential Cave-ins . | . . . . Cave-ins Triggered . | . . . . Exploration Rate (%) 12 | 4 18 25 2 Regions Visited 3 Branch Regions 1 Pre-discovered Areas . | . . . . Known Exits Taken . | . . . . Unknown Exits Taken 3 | 1 1 1 . Scrap Searched 6 | . . 6 . Spaces Dug . | . . . . Terrain Destroyed 38 | . . 38 . Melee . | . . . . Projectile . | . . . . AOE 38 | . . 38 . Terrain Rammed . | . . . . Walls Destroyed . | . . . . Machines Disabled . | . . . . Actions | -11 -10 -10 -8 --------- Run | Yrd Mat Sub Mat Total 1003 | 95 140 762 6 Wait 50 | . 2 48 . Move 824 | 75 103 640 6 Hop . | . . . . Pick Up 33 | 6 12 15 . Fast Attach 8 | 6 1 1 . Attach 3 | . . 3 . Detach 1 | . 1 . . Swap 9 | . . 9 . Drop 16 | . 1 15 . Fire 42 | 8 18 16 . Melee 15 | . . 15 . Ram 2 | . 2 . . Kick . | . . . . Crush . | . . . . Escape Stasis . | . . . . Rewire . | . . . . Trap . | . . . . Miscellaneous . | . . . . Route ------- -11/Scrapyard -10/Materials (discovered 2 exits: [*Min] / *Sub) -10/Subcaves (discovered 3 exits: [*Mat x2] / Rec) -8/Materials History --------- Turn | Location | Event 30 | -11/Scrapyard | Discovered new exit (range 14) 100 | -11/Scrapyard | Entered Materials 187 | -10/Materials | Discovered new exit (range 7) 262 | -10/Materials | Discovered new exit (range 8) 273 | -10/Materials | Entered Subcaves 274 | -10/Subcaves | Approached by a straggling Scientist 276 | -10/Subcaves | Discovered new exit (range 10) 293 | -10/Subcaves | Visited Clippyterm 297 | -10/Subcaves | Identified exit to Recycling 312 | -10/Subcaves | Build established: Mutant 365 | -10/Subcaves | Ambushed by Subdwellers from Twisted Machinery 1576 | -10/Subcaves | Visited 4L-MR0's lab 1579 | -10/Subcaves | Learned Materials stockpile data 1587 | -10/Subcaves | Found Prototype Device 1587 | -10/Subcaves | Identified Sfc. Transmogrifier 1599 | -10/Subcaves | Found Arachnoskeleton 1670 | -10/Subcaves | Discovered new exit (range 8) 1748 | -10/Subcaves | Entered Materials 1748 | -8/Materials | Evolved 4 slots: Propulsion x1, Utility x3 1756 | -8/Materials | Self-destructed Last Messages --------------- 01697_ Acquired 8 matter. 01700_ Sneak attack on 43-U88(R). 01702_ 43-U88(R) destroyed. 01707_ Dropped Sub. Monowheel. 01707_ Acquired Sub. Monowheel. 01712_ Dropped Sub. Monowheel. 01712_ Acquired Sub. Monowheel. 01716_ Sneak attack on 6Z-HUW(R). 01720_ Destroyed Scrap Shield. 01722_ Sneak attack on 6Z-HUW(R). 01722_ 6Z-HUW(R) destroyed. 01727_ Dropped Sub. Power Source. 01727_ Acquired Sub. Power Source. 01729_ Dropped Ion Engine. 01732_ Acquired Sub. Beam Cannon. 01739_ Acquired 10 matter. PARAMETERS=PROPULSION+1,UTILITY+3 LOCATION=UNKNOWN GOAL=ESCAPE Loading Materials stockpile data (x9)... Map ----- +----------------------------------------------------+ | ?????????????????????????????????????????????????? | | ?????????????????????????????????????????????????? | | ?????????????????????????????????????????????????? | | ?????????????????????????????????????????????????? | | ?????????????????????????????????????????????????? | | ?????????????????????????????????????????????????? | | ?????????????????????????????????????????????????? | | ?????????????????????????????????????????????????? | | ?????????????????????????????????????????????????? | | ?????????????????????????????????????????????????? | | ?????????????????????????????????????????????????? | | ?????????????????????????????????????????????????? | | ?????????????????????????????????????????????????? | | ?????????????????????????????????????????????????? | | ?????????????????????????????????????????????????? | | ?????????????????????????????????????????????????? | | ?????????????????????????????????????????????????? | | ?????????????????????????????????????????????????? | | ?????????????????????????????????????????????????? | | ?????????????????????????????????????????????????? | | ?????????????????????????????????????????????????? | | ???????+###########+#########????????????????????? | | ??????? # #????????????????????? | | ?????? # #????????????????????? | | ?????????? # #????????????????????? | | ?????????????????# + @ #????????????????????? | | ?????????????????# # #????????????????????? | | ?????????????????# # +????????????????????? | | ?????????????????# ########????????????????????? | | ?????????????????#####???????????????????????????? | | ???????????????????????????????????????????????[?? | | ?????????????????????????????????????????????????? | | ?????????????????????????????????????????????????? | | ?????????????????????????????????????????????????? | | ?????????????????????????????????????????????????? | | ?????????????????????????????????????????????????? | | ?????????????????????????????????????????????????? | | ?????????????????????????????????????????????????? | | ?????????????????????????????????????????????????? | | ?????????????????????????????????????????????????? | | ?????????????????????????????????????????????????? | | | | | | | | | | | | | | | | | | | +----------------------------------------------------+ Best States ------------- Heat Dissipation 31 Energy Generation 15 Energy Capacity 250 Matter Stores 300 Matter Capacity 300 Sight Range 16 Terrain Scan Density 10 Armor Coverage 150 Evasion (%) 44 Item Schematics ----------------- None Robot Schematics ------------------ None Fabricated ------------ Nothing Repaired ---------- Nothing Studied --------- None Alien Tech Used ----------------- None Achievements -------------- For Emergencies Only Ghost 'Em Mistaken Identity Challenges ------------ None Game ------ Seed DynamicSensorShell Manual? 0 Play Time 00:11:35 Cumulative 382.1 hours Start 2026.06.24 @ 22:52:56 End 2026.06.24 @ 23:04:22 Sessions 1 Manual Loads 0 Difficulty Rogue Special Mode None Game No. 285 Rogue 285 Adventurer 0 Explorer 0 Win Type - Total 7 Types 3/0/3/1/0/0/0/0/0/0 Lore% 75 Gallery% 71 Achievement% 38 Wizard Run 0 Options --------- Layout 2 ASCII 0 Keyboard 1 Movement Vi Keybinds 0 Fullscreen 2 Font 32/SmallcapsGlow Map View 77x44 Zoom Use 0% Tactical HUD 1 Map Filters NONE Filters NONE Steam 1 RUN: e5881c2f-e500-4b26-8208-6e939d134213